[Event "RUS-chT Blitz Women 2018"]
[Site "Sochi"]
[Date "2018.10.10"]
[Round "12"]
[White "Gritsayeva, Oksana"]
[Black "Kovanova, Baira"]
[Result "1/2-1/2"]
[ECO "E11"]
[WhiteElo "2378"]
[BlackElo "2350"]
[Annotator "NA RC"]
[PlyCount "95"]
[EventDate "2018.10.10"]
[EventType "swiss"]
[EventCountry "RUS"]
[SourceTitle "playchess.com"]
[Source "ChessBase"]
[SourceQuality "1"]
[TimeControl "180+2"]

1. d4 {[%emt 0:00:00]} Nf6 {[%emt 0:00:00]} 2. Nf3 {[%emt 0:00:00]} e6 {[%emt 0:00:00]} 3. c4 {[%emt 0:00:02]} Bb4+ {[%emt 0:00:01]} 4. Nbd2 {[%emt 0:00:10]} b6 {[%emt 0:00:02]} 5. a3 {[%emt 0:00:09]} Bxd2+ {[%emt 0:00:02]} 6. Qxd2 {[%emt 0:00:03]} Bb7 {[%emt 0:00:06]} 7. e3 {[%emt 0:00:04]} a5 {[%emt 0:00:02]} 8. b3 {[%emt 0:00:08]} d6 {[%emt 0:00:01]} 9. Be2 {[%emt 0:00:04]} Nbd7 {[%emt 0:00:02]} 10. Bb2 {[%emt 0:00:02]} Qe7 {[%emt 0:00:05]} 11. O-O {[%emt 0:00:05]} O-O {[%emt 0:00:02]} 12. Qc2 {[%emt 0:00:16]} Be4 {[%emt 0:00:02]} 13. Bd3 {[%emt 0:00:09]} Bxf3 {[%emt 0:00:27]} 14. gxf3 {[%emt 0:00:01]} e5 {[%emt 0:00:02]} 15. dxe5 {[%emt 0:00:14]} Nxe5 {[%emt 0:00:18]} 16. Be2 {[%emt 0:00:11]} Kh8 {[%emt 0:00:26]} 17. Qf5 {[%emt 0:00:11]} Qd7 {[%emt 0:00:07]} 18. Qxd7 {[%emt 0:00:08]} Nfxd7 {[%emt 0:00:08]} 19. f4 {[%emt 0:00:03]} Ng6 {[%emt 0:00:05]} 20. Rab1 {[%emt 0:00:17]} Nc5 {[%emt 0:00:06]} 21. Bd4 {[%emt 0:00:06]} Nh4 {[%emt 0:00:07]} 22. Rfd1 {[%emt 0:00:07]} Nf5 {[%emt 0:00:08]} 23. Bc3 {[%emt 0:00:06]} Ne4 {[%emt 0:00:06]} 24. Be1 {[%emt 0:00:03]} Rfe8 {[%emt 0:00:15]} 25. f3 {[%emt 0:00:13]} Nc5 {[%emt 0:00:25]} 26. e4 {[%emt 0:00:01]} Ne7 {[%emt 0:00:11]} 27. f5 {[%emt 0:00:04]} Nc6 {[%emt 0:00:03]} 28. Kf2 {[%emt 0:00:07]} Ne5 {[%emt 0:00:03]} 29. Bc3 {[%emt 0:00:03]} Ng4+ {[%emt 0:00:07]} 30. Kg3 {[%emt 0:00:07]} Ne5 {[%emt 0:00:03]} 31. h4 {[%emt 0:00:07]} f6 {[%emt 0:00:01]} 32. Bf1 {[%emt 0:00:03]} Re7 {[%emt 0:00:05]} 33. Kf2 {[%emt 0:00:07]} Ng4+ {[%emt 0:00:01]} 34. Kg3 {[%emt 0:00:02]} Ne5 {[%emt 0:00:01]} 35. Bg2 {[%emt 0:00:04]} a4 {[%emt 0:00:05]} 36. b4 {[%emt 0:00:05]} Nb3 {[%emt 0:00:04]} 37. Bf1 {[%emt 0:00:03]} Rae8 {[%emt 0:00:06]} 38. f4 {[%emt 0:00:06]} Nf7 {[%emt 0:00:04]} 39. Bd3 {[%emt 0:00:01]} c5 {[%emt 0:00:01]} 40. b5 {[%emt 0:00:05]} Nd8 {[%emt 0:00:06]} 41. Kf3 {[%emt 0:00:01]} Nb7 {[%emt 0:00:01]} 42. h5 {[%emt 0:00:03]} h6 {[%emt 0:00:01]} 43. Bc2 {[%emt 0:00:05]} Kg8 {[%emt 0:00:03]} 44. Re1 {[%emt 0:00:06]} N7a5 {[%emt 0:00:02]} 45. Bd3 {[%emt 0:00:02]} Nb7 {[%emt 0:00:04]} 46. Re2 {[%emt 0:00:04]} N7a5 {[%emt 0:00:02]} 47. Rbe1 {[%emt 0:00:03]} Nb7 {[%emt 0:00:00]} 48. Bc2 {[%emt 0:00:05]} 1/2-1/2

[Event "RUS-chT Blitz Women 2018"]
[Site "Sochi"]
[Date "2018.10.10"]
[Round "12"]
[White "Guseva, Marina"]
[Black "Tomilova, Elena"]
[Result "1/2-1/2"]
[ECO "D10"]
[WhiteElo "2292"]
[BlackElo "2328"]
[Annotator "NA"]
[PlyCount "48"]
[EventDate "2018.10.10"]
[EventType "swiss"]
[EventCountry "RUS"]
[SourceTitle "playchess.com"]
[Source "ChessBase"]
[SourceQuality "1"]
[TimeControl "180+2"]

1. d4 {[%emt 0:00:00]} d5 {[%emt 0:00:00]} 2. c4 {[%emt 0:00:00]} c6 {[%emt 0:00:00]} 3. Nc3 {[%emt 0:00:03]} dxc4 {[%emt 0:00:00]} 4. e3 {[%emt 0:00:01]} b5 {[%emt 0:00:02]} 5. a4 {[%emt 0:00:01]} b4 {[%emt 0:00:00]} 6. Ne4 {[%emt 0:00:01]} Qd5 {[%emt 0:00:03]} 7. Ng3 {[%emt 0:00:01]} Nf6 {[%emt 0:00:04]} 8. Be2 {[%emt 0:00:02]} Ba6 {[%emt 0:00:12]} 9. e4 {[%emt 0:00:23]} Qa5 {[%emt 0:00:15]} 10. Nf3 {[%emt 0:00:10]} e6 {[%emt 0:00:04]} 11. O-O {[%emt 0:00:03]} Nbd7 {[%emt 0:00:09]} 12. Qc2 {[%emt 0:00:19]} b3 {[%emt 0:00:13]} 13. Qd1 {[%emt 0:00:03]} Bb4 {[%emt 0:00:10]} 14. Bd2 {[%emt 0:00:07]} O-O {[%emt 0:00:07]} 15. Bxb4 {[%emt 0:00:05]} Qxb4 {[%emt 0:00:01]} 16. e5 {[%emt 0:00:03]} Nd5 {[%emt 0:00:04]} 17. Ne4 {[%emt 0:00:02]} c5 {[%emt 0:00:14]} 18. dxc5 {[%emt 0:00:19]} Nxc5 {[%emt 0:00:03]} 19. Qd4 {[%emt 0:00:02]} Rac8 {[%emt 0:00:19]} 20. Nd6 {[%emt 0:00:11]} Rc7 {[%emt 0:00:15]} 21. Bxc4 {[%emt 0:00:38]} Bxc4 {[%emt 0:00:04]} 22. Qxc4 {[%emt 0:00:03]} Qxc4 {[%emt 0:00:03]} 23. Nxc4 {[%emt 0:00:02]} Nd3 {[%emt 0:00:03]} 24. Ncd2 {[%emt 0:00:06]} Rb8 {[%emt 0:00:08]} 1/2-1/2

[Event "RUS-chT Blitz Women 2018"]
[Site "Sochi"]
[Date "2018.10.10"]
[Round "12"]
[White "Shendrik, Zhanna"]
[Black "Chan, Naruna"]
[Result "1-0"]
[ECO "A88"]
[WhiteElo "1934"]
[BlackElo "1967"]
[Annotator "NA RC"]
[PlyCount "75"]
[EventDate "2018.10.10"]
[EventType "swiss"]
[EventCountry "RUS"]
[SourceTitle "playchess.com"]
[Source "ChessBase"]
[SourceQuality "1"]
[TimeControl "180+2"]

1. d4 {[%emt 0:00:00]} f5 {[%emt 0:00:00]} 2. g3 {[%emt 0:00:02]} d6 {[%emt 0:00:02]} 3. Bg2 {[%emt 0:00:02]} Nf6 {[%emt 0:00:01]} 4. Nf3 {[%emt 0:00:06]} g6 {[%emt 0:00:01]} 5. c4 {[%emt 0:00:10]} Bg7 {[%emt 0:00:01]} 6. Nc3 {[%emt 0:00:01]} O-O {[%emt 0:00:02]} 7. O-O {[%emt 0:00:01]} c6 {[%emt 0:00:02]} 8. Qc2 {[%emt 0:00:07]} Qc7 {[%emt 0:00:02]} 9. b3 {[%emt 0:00:03]} e5 {[%emt 0:00:02]} 10. dxe5 {[%emt 0:00:02]} dxe5 {[%emt 0:00:01]} 11. Bb2 {[%emt 0:00:02]} e4 {[%emt 0:00:02]} 12. Nd4 {[%emt 0:00:11]} Na6 {[%emt 0:00:02]} 13. a3 {[%emt 0:00:07]} Ng4 {[%emt 0:00:08]} 14. h3 {[%emt 0:00:38]} Nxf2 {[%emt 0:00:21]} 15. Kxf2 {[%emt 0:00:17]} Bxd4+ {[%emt 0:00:01]} 16. e3 {[%emt 0:00:01]} Be5 {[%emt 0:00:03]} 17. Ne2 {[%emt 0:00:03]} Nc5 {[%emt 0:00:11]} 18. Bxe5 {[%emt 0:00:11]} Qxe5 {[%emt 0:00:04]} 19. Kg1 {[%emt 0:00:08]} Be6 {[%emt 0:00:11]} 20. Nf4 {[%emt 0:00:03]} Rfd8 {[%emt 0:00:10]} 21. Rad1 {[%emt 0:00:10]} Bf7 {[%emt 0:00:42]} 22. b4 {[%emt 0:00:12]} Ne6 {[%emt 0:00:08]} 23. Kh2 {[%emt 0:00:06]} Qc7 {[%emt 0:00:11]} 24. c5 {[%emt 0:00:08]} Nxf4 {[%emt 0:00:06]} 25. gxf4 {[%emt 0:00:02]} Rd5 {[%emt 0:00:06]} 26. Rxd5 {[%emt 0:00:05]} Bxd5 {[%emt 0:00:04]} 27. Kg1 {[%emt 0:00:13]} a5 {[%emt 0:00:05]} 28. Qc3 {[%emt 0:00:03]} Qg7 {[%emt 0:00:22]} 29. Qd2 {[%emt 0:00:06]} axb4 {[%emt 0:00:04]} 30. Qxb4 {[%emt 0:00:08]} Qc7 {[%emt 0:00:16]} 31. Rb1 {[%emt 0:00:03]} Ra7 {[%emt 0:00:02]} 32. Bf1 {[%emt 0:00:09]} h6 {[%emt 0:00:04]} 33. Bc4 {[%emt 0:00:03]} Kf7 {[%emt 0:00:08]} 34. Bxd5+ {[%emt 0:00:02]} cxd5 {[%emt 0:00:01]} 35. Qd4 {[%emt 0:00:06]} Qc6 {[%emt 0:00:04]} 36. Rb6 {[%emt 0:00:02]} Qd7 {[%emt 0:00:10]} 37. Qf6+ {[%emt 0:00:01]} Ke8 {[%emt 0:00:05]} 38. Re6+ {[%emt 0:00:03] Kd8 [%clk 0:00:07]} 1-0

[Event "RUS-chT Blitz Women 2018"]
[Site "Sochi"]
[Date "2018.10.10"]
[Round "12"]
[White "Sukhareva, Valentina"]
[Black "Zavivaeva, Emilia"]
[Result "1-0"]
[ECO "A45"]
[WhiteElo "1817"]
[BlackElo "1633"]
[Annotator "NA RC"]
[PlyCount "159"]
[EventDate "2018.10.10"]
[EventType "swiss"]
[EventCountry "RUS"]
[SourceTitle "playchess.com"]
[Source "ChessBase"]
[SourceQuality "1"]
[TimeControl "180+2"]

1. d4 {[%emt 0:00:02]} Nf6 {[%emt 0:00:00]} 2. Bg5 {[%emt 0:00:02]} b6 {[%emt 0:00:24]} 3. c4 {[%emt 0:00:07]} Bb7 4. Nc3 {[%emt 0:00:03]} h6 {[%emt 0:00:04]} 5. Bxf6 {[%emt 0:00:02]} gxf6 {[%emt 0:00:22]} 6. e4 {[%emt 0:00:04]} e5 {[%emt 0:00:02]} 7. d5 {[%emt 0:00:07]} Bb4 {[%emt 0:00:04]} 8. Qc2 {[%emt 0:00:06]} d6 {[%emt 0:00:02]} 9. g3 {[%emt 0:00:07]} Nd7 {[%emt 0:00:03]} 10. Bh3 {[%emt 0:00:02]} Nc5 {[%emt 0:00:02]} 11. Nge2 {[%emt 0:00:14]} Ba6 {[%emt 0:00:04]} 12. b3 {[%emt 0:00:06]} Bc8 {[%emt 0:00:08]} 13. a3 {[%emt 0:00:01]} Bxc3+ {[%emt 0:00:05]} 14. Nxc3 {[%emt 0:00:04]} Bxh3 {[%emt 0:00:02]} 15. b4 {[%emt 0:00:14]} Nb7 {[%emt 0:00:18]} 16. O-O-O {[%emt 0:00:04]} a5 {[%emt 0:00:07]} 17. Kb2 {[%emt 0:00:03]} Bg4 {[%emt 0:00:10]} 18. Ra1 {[%emt 0:00:08]} axb4 {[%emt 0:00:06]} 19. axb4 {[%emt 0:00:01]} Rxa1 {[%emt 0:00:19]} 20. Rxa1 {[%emt 0:00:00]} Ke7 {[%emt 0:00:20]} 21. Nb5 {[%emt 0:00:17]} Qb8 {[%emt 0:00:45]} 22. Na7 {[%emt 0:00:03]} Bd7 {[%emt 0:00:03]} 23. f4 {[%emt 0:00:14]} Nd8 {[%emt 0:00:05]} 24. Qe2 {[%emt 0:00:13]} h5 {[%emt 0:00:05]} 25. fxe5 {[%emt 0:00:06]} dxe5 {[%emt 0:00:03]} 26. Kc3 {[%emt 0:00:04]} c6 {[%emt 0:00:02]} 27. Qd2 {[%emt 0:00:04]} c5 {[%emt 0:00:03]} 28. b5 {[%emt 0:00:08]} Qc7 {[%emt 0:00:02]} 29. Qe2 {[%emt 0:00:09]} Nb7 {[%emt 0:00:01]} 30. Rf1 {[%emt 0:00:04]} Na5 {[%emt 0:00:02]} 31. Nc6+ {[%emt 0:00:02]} Nxc6 {[%emt 0:00:03]} 32. dxc6 {[%emt 0:00:04]} Bg4 {[%emt 0:00:03]} 33. Qf2 {[%emt 0:00:02]} Qd6 {[%emt 0:00:02]} 34. Ra1 {[%emt 0:00:11]} Qc7 {[%emt 0:00:03]} 35. Ra6 {[%emt 0:00:06]} Rb8 {[%emt 0:00:02]} 36. Qa2 {[%emt 0:00:02]} Qd6 {[%emt 0:00:03]} 37. Ra7+ {[%emt 0:00:05]} Kf8 {[%emt 0:00:01]} 38. Qd2 {[%emt 0:00:07]} Qd4+ {[%emt 0:00:02]} 39. Qxd4 {[%emt 0:00:02]} exd4+ {[%emt 0:00:02]} 40. Kd3 {[%emt 0:00:01]} Rc8 {[%emt 0:00:02]} 41. Rb7 {[%emt 0:00:02]} Ke8 {[%emt 0:00:03]} 42. Rxb6 {[%emt 0:00:02]} Kd8 {[%emt 0:00:02]} 43. Rb7 {[%emt 0:00:01]} Rc7 {[%emt 0:00:01]} 44. Rb8+ {[%emt 0:00:03]} Ke7 {[%emt 0:00:01]} 45. Ra8 {[%emt 0:00:07]} Kd6 {[%emt 0:00:03]} 46. Ra1 {[%emt 0:00:09]} Ke5 {[%emt 0:00:03]} 47. Rb1 {[%emt 0:00:07]} Rc8 {[%emt 0:00:02]} 48. b6 Kd6 {[%emt 0:00:01]} 49. c7 {[%emt 0:00:11]} Kc6 {[%emt 0:00:02]} 50. b7 {[%emt 0:00:04]} Kxc7 {[%emt 0:00:01]} 51. bxc8=Q+ {[%emt 0:00:02]} Bxc8 {[%emt 0:00:03]} 52. Rb5 {[%emt 0:00:01]} Kc6 {[%emt 0:00:01]} 53. Ra5 {[%emt 0:00:02]} Be6 {[%emt 0:00:02]} 54. Ra8 {[%emt 0:00:01]} Kd6 {[%emt 0:00:02]} 55. Ra5 {[%emt 0:00:02]} Kc6 {[%emt 0:00:02]} 56. Ra1 {[%emt 0:00:03]} Kd6 {[%emt 0:00:02]} 57. Rf1 {[%emt 0:00:01]} Ke7 {[%emt 0:00:01]} 58. Rf4 {[%emt 0:00:02]} Bg4 {[%emt 0:00:02]} 59. Rf1 {[%emt 0:00:04]} Bh3 {[%emt 0:00:01]} 60. Ra1 {[%emt 0:00:03]} Be6 {[%emt 0:00:02]} 61. Ra6 {[%emt 0:00:02]} Kd7 {[%emt 0:00:02]} 62. Rb6 {[%emt 0:00:01]} Kc7 {[%emt 0:00:01]} 63. Ra6 {[%emt 0:00:02]} Kb7 {[%emt 0:00:02]} 64. Ra5 {[%emt 0:00:02]} Kb6 {[%emt 0:00:01]} 65. Ra8 {[%emt 0:00:02]} Kc6 {[%emt 0:00:02]} 66. Ra6+ {[%emt 0:00:02]} Kb7 {[%emt 0:00:02]} 67. Rd6 {[%emt 0:00:02]} Kc7 {[%emt 0:00:02]} 68. Ra6 {[%emt 0:00:02]} Kb7 {[%emt 0:00:01]} 69. Ra5 {[%emt 0:00:01]} Kb6 {[%emt 0:00:01]} 70. Ra8 {[%emt 0:00:01]} Kb7 {[%emt 0:00:01]} 71. Rh8 {[%emt 0:00:02]} Bg4 {[%emt 0:00:07]} 72. Rh7 {[%emt 0:00:01]} Kc6 {[%emt 0:00:03]} 73. Rxf7 {[%emt 0:00:02]} Kd6 {[%emt 0:00:02]} 74. Rxf6+ {[%emt 0:00:01]} Ke5 {[%emt 0:00:02]} 75. Rc6 {[%emt 0:00:03]} Bf3 {[%emt 0:00:02]} 76. Rxc5+ {[%emt 0:00:02]} Kd6 {[%emt 0:00:02]} 77. Kxd4 {[%emt 0:00:02]} Bg4 {[%emt 0:00:03]} 78. Rd5+ {[%emt 0:00:01]} Kc6 {[%emt 0:00:02]} 79. c5 {[%emt 0:00:02]} Kc7 {[%emt 0:00:03]} 80. e5 1-0

[Event "RUS-chT Blitz Women 2018"]
[Site "Sochi"]
[Date "2018.10.10"]
[Round "12"]
[White "Zavivaeva, Evelina"]
[Black "Seregina, Maria"]
[Result "0-1"]
[ECO "B22"]
[WhiteElo "1323"]
[BlackElo "1923"]
[Annotator "NA RC"]
[PlyCount "94"]
[EventDate "2018.10.10"]
[EventType "swiss"]
[EventCountry "RUS"]
[SourceTitle "playchess.com"]
[Source "ChessBase"]
[SourceQuality "1"]
[TimeControl "180+2"]

1. e4 {[%emt 0:00:00]} c5 {[%emt 0:00:00]} 2. c3 {[%emt 0:00:00]} Nc6 {[%emt 0:00:02]} 3. d4 {[%emt 0:00:01]} cxd4 {[%emt 0:00:09]} 4. cxd4 {[%emt 0:00:01]} d5 {[%emt 0:00:01]} 5. e5 {[%emt 0:00:04]} Bf5 {[%emt 0:00:16]} 6. Nc3 {[%emt 0:00:05]} Qd7 {[%emt 0:00:15]} 7. Bb5 {[%emt 0:00:05]} e6 {[%emt 0:00:10]} 8. Nge2 {[%emt 0:00:12]} a6 {[%emt 0:00:08]} 9. Qa4 {[%emt 0:00:10]} Nge7 {[%emt 0:00:12]} 10. b3 {[%emt 0:00:26]} Ng6 {[%emt 0:00:06]} 11. Ba3 {[%emt 0:00:11]} Be7 {[%emt 0:00:09]} 12. Bxe7 {[%emt 0:00:19]} Ngxe7 {[%emt 0:00:03]} 13. Qa3 {[%emt 0:00:31]} O-O {[%emt 0:00:05]} 14. Bxc6 {[%emt 0:00:03]} Nxc6 {[%emt 0:00:03]} 15. O-O {[%emt 0:00:00]} b5 {[%emt 0:00:01]} 16. Qb2 {[%emt 0:00:05]} Rac8 {[%emt 0:00:10]} 17. Rac1 {[%emt 0:00:07]} Nb4 {[%emt 0:00:12]} 18. Qd2 {[%emt 0:00:23]} a5 {[%emt 0:00:42]} 19. Nf4 {[%emt 0:00:11]} Rc7 {[%emt 0:00:15]} 20. Nce2 {[%emt 0:00:15]} Rfc8 {[%emt 0:00:03]} 21. Rxc7 {[%emt 0:00:03]} Rxc7 {[%emt 0:00:01]} 22. Rc1 {[%emt 0:00:05]} h6 {[%emt 0:00:07]} 23. Rxc7 {[%emt 0:00:06]} Qxc7 {[%emt 0:00:17]} 24. Qc3 {[%emt 0:00:00]} Qxc3 {[%emt 0:00:02]} 25. Nxc3 {[%emt 0:00:02]} g5 {[%emt 0:00:04]} 26. Nh5 {[%emt 0:00:07]} Bd3 {[%emt 0:00:03]} 27. Nf6+ {[%emt 0:00:07]} Kg7 {[%emt 0:00:01]} 28. f3 {[%emt 0:00:08]} Nc2 {[%emt 0:00:02]} 29. Nd7 {[%emt 0:00:05]} Nxd4 {[%emt 0:00:03]} 30. Kf2 {[%emt 0:00:03]} b4 {[%emt 0:00:04]} 31. Na4 {[%emt 0:00:03]} Bb5 {[%emt 0:00:01]} 32. Ndb6 {[%emt 0:00:02]} Nc6 {[%emt 0:00:03]} 33. Nc8 {[%emt 0:00:03]} Nxe5 {[%emt 0:00:02]} 34. Nd6 {[%emt 0:00:01]} Bxa4 {[%emt 0:00:02]} 35. bxa4 {[%emt 0:00:01]} Nc6 {[%emt 0:00:02]} 36. Nb7 {[%emt 0:00:02]} e5 {[%emt 0:00:02]} 37. Ke3 {[%emt 0:00:01]} Kf6 {[%emt 0:00:02]} 38. g3 {[%emt 0:00:01]} Ke6 {[%emt 0:00:01]} 39. f4 {[%emt 0:00:01]} d4+ {[%emt 0:00:02]} 40. Ke4 {[%emt 0:00:01]} f5+ {[%emt 0:00:00]} 41. Kd3 {[%emt 0:00:01]} e4+ {[%emt 0:00:02]} 42. Ke2 {[%emt 0:00:01]} gxf4 {[%emt 0:00:03]} 43. gxf4 {[%emt 0:00:01]} Kd5 {[%emt 0:00:02]} 44. h3 {[%emt 0:00:10]} d3+ {[%emt 0:00:04]} 45. Ke3 {[%emt 0:00:00]} Kc4 {[%emt 0:00:03]} 46. Nd6+ {[%emt 0:00:02]} Kc3 {[%emt 0:00:01]} 47. Nxe4+ {[%emt 0:00:05]} fxe4 {[%emt 0:00:02]} 0-1